[Event "Titled Tuesday Blitz September 28 2021"]
[White "Yuan, Qingyu"]
[Black "Damjanovic, Vladimir"]
[WhiteFideId "8609772"]
[BlackFideId "903795"]
[WhiteElo "2359"]
[BlackElo "2374"]
[Result "0-1"]
[Round "07"]
[TimeControl "180+1"]
[Date "2021.09.28"]
[WhiteClock "0:00:02"]
[BlackClock "0:00:04"]

1. Nf3 {[%clk 0:03:00]}  Nc6 {[%clk 0:02:56]} 2. d4 {[%clk 0:03:00]}  Nf6 {[%clk 0:02:56]} 3. c4 {[%clk 0:03:00]}  g6 {[%clk 0:02:54]} 4. d5 {[%clk 0:02:59]}  Nb8 {[%clk 0:02:54]} 5. Nc3 {[%clk 0:02:59]}  Bg7 {[%clk 0:02:55]} 6. e4 {[%clk 0:03:00]}  d6 {[%clk 0:02:56]} 7. Bd3 {[%clk 0:02:59]}  O-O {[%clk 0:02:56]} 8. h3 {[%clk 0:02:59]}  a5 {[%clk 0:02:55]} 9. a3 {[%clk 0:02:52]}  Na6 {[%clk 0:02:54]} 10. O-O {[%clk 0:02:46]}  Nc5 {[%clk 0:02:54]} 11. Bc2 {[%clk 0:02:42]}  Nfd7 {[%clk 0:02:54]} 12. Bd2 {[%clk 0:02:36]}  a4 {[%clk 0:02:43]} 13. Rb1 {[%clk 0:02:08]}  Nb6 {[%clk 0:02:42]} 14. Qe2 {[%clk 0:02:08]}  e6 {[%clk 0:02:41]} 15. Bg5 {[%clk 0:02:03]}  Bf6 {[%clk 0:02:30]} 16. Bxf6 {[%clk 0:01:36]}  Qxf6 {[%clk 0:02:30]} 17. e5 {[%clk 0:01:27]}  dxe5 {[%clk 0:02:30]} 18. Nxe5 {[%clk 0:01:28]}  exd5 {[%clk 0:02:23]} 19. cxd5 {[%clk 0:01:20]}  Re8 {[%clk 0:02:20]} 20. Rbe1 {[%clk 0:01:11]}  Kg7 {[%clk 0:02:07]} 21. f4 {[%clk 0:01:09]}  Nbd7 {[%clk 0:02:05]} 22. Qb5 {[%clk 0:01:06]}  Qb6 {[%clk 0:01:39]} 23. Kh1 {[%clk 0:00:36]}  Ra5 {[%clk 0:01:25]} 24. Qb4 {[%clk 0:00:22]}  Ra8 {[%clk 0:01:09]} 25. Nb5 {[%clk 0:00:19]}  c6 {[%clk 0:00:51]} 26. Nd6 {[%clk 0:00:15]}  Rf8 {[%clk 0:00:50]} 27. Qc3 {[%clk 0:00:13]}  Qa5 {[%clk 0:00:23]} 28. Qd4 {[%clk 0:00:08]}  f6 {[%clk 0:00:19]} 29. Nec4 {[%clk 0:00:07]}  Qd8 {[%clk 0:00:19]} 30. dxc6 {[%clk 0:00:07]}  bxc6 {[%clk 0:00:19]} 31. f5 {[%clk 0:00:08]}  Nb7 {[%clk 0:00:13]} 32. fxg6 {[%clk 0:00:07]}  hxg6 {[%clk 0:00:12]} 33. Qg4 {[%clk 0:00:07]}  Ne5 {[%clk 0:00:12]} 34. Qd4 {[%clk 0:00:03]}  Nxd6 {[%clk 0:00:12]} 35. Nxd6 {[%clk 0:00:03]}  Ra5 {[%clk 0:00:06]} 36. Qd2 {[%clk 0:00:03]}  Rd5 {[%clk 0:00:06]} 37. Qc3 {[%clk 0:00:03]}  Qxd6 {[%clk 0:00:06]} 38. Re3 {[%clk 0:00:03]}  Rd4 {[%clk 0:00:05]} 39. Rg3 {[%clk 0:00:03]}  g5 {[%clk 0:00:05]} 40. Re1 {[%clk 0:00:03]}  c5 {[%clk 0:00:05]} 41. Qe3 {[%clk 0:00:03]}  Bb7 {[%clk 0:00:04]} 42. Qe2 {[%clk 0:00:04]}  Rd2 {[%clk 0:00:04]} 43. Qh5 {[%clk 0:00:04]}  Rxc2 {[%clk 0:00:04]} 44. Rxg5+ {[%clk 0:00:04]}  fxg5 {[%clk 0:00:05]} 45. Qxg5+ {[%clk 0:00:05]}  Qg6 {[%clk 0:00:05]} 46. Qxe5+ {[%clk 0:00:05]}  Kh7 {[%clk 0:00:04]} 47. Qe7+ {[%clk 0:00:06]}  Rf7 {[%clk 0:00:04]} 48. Qh4+ {[%clk 0:00:05]}  Kg7 {[%clk 0:00:05]} 49. Rg1 {[%clk 0:00:04]}  Bxg2+ {[%clk 0:00:03]} 50. Kh2 {[%clk 0:00:04]}  Bb7+ {[%clk 0:00:03]} 51. Qf2 {[%clk 0:00:03]}  Rcxf2+ {[%clk 0:00:04]} 52. Rg2 {[%clk 0:00:02]}  Qxg2# {[%clk 0:00:04]} 0-1


[Site "https://www.chess.com"]

[Event "Titled Tuesday Blitz September 28 2021"]
[White "Zhigalko, Sergei"]
[Black "Krivonosov, Oleg"]
[WhiteFideId "13502956"]
[BlackFideId "11600349"]
[WhiteElo "2886"]
[BlackElo "2727"]
[Result "1-0"]
[Round "07"]
[TimeControl "180+1"]
[Date "2021.09.28"]
[WhiteClock "0:00:06"]
[BlackClock "0:00:04"]

1. e4 {[%clk 0:03:00]}  e5 {[%clk 0:02:59]} 2. Nf3 {[%clk 0:03:01]}  Nc6 {[%clk 0:02:59]} 3. Bc4 {[%clk 0:03:00]}  Bc5 {[%clk 0:02:58]} 4. b4 {[%clk 0:03:00]}  Bb6 {[%clk 0:02:57]} 5. a4 {[%clk 0:03:00]}  a6 {[%clk 0:02:56]} 6. Nc3 {[%clk 0:03:00]}  Nf6 {[%clk 0:02:52]} 7. Nd5 {[%clk 0:03:00]}  Nxd5 {[%clk 0:02:51]} 8. exd5 {[%clk 0:03:00]}  Nd4 {[%clk 0:02:49]} 9. a5 {[%clk 0:03:00]}  Ba7 {[%clk 0:02:45]} 10. d6 {[%clk 0:03:00]}  cxd6 {[%clk 0:02:25]} 11. Nxd4 {[%clk 0:02:53]}  Bxd4 {[%clk 0:02:23]} 12. Qf3 {[%clk 0:02:52]}  d5 {[%clk 0:02:16]} 13. Bxd5 {[%clk 0:02:45]}  O-O {[%clk 0:02:16]} 14. c3 {[%clk 0:02:44]}  Ba7 {[%clk 0:02:14]} 15. O-O {[%clk 0:02:39]}  Rb8 {[%clk 0:02:11]} 16. d4 {[%clk 0:02:28]}  d6 {[%clk 0:02:03]} 17. Re1 {[%clk 0:02:23]}  Qc7 {[%clk 0:01:53]} 18. Qg3 {[%clk 0:01:50]}  Bf5 {[%clk 0:01:32]} 19. dxe5 {[%clk 0:01:47]}  dxe5 {[%clk 0:01:30]} 20. Rxe5 {[%clk 0:01:44]}  Bg6 {[%clk 0:01:18]} 21. Bf4 {[%clk 0:01:43]}  Qd7 {[%clk 0:01:16]} 22. h4 {[%clk 0:01:15]}  Rbe8 {[%clk 0:01:06]} 23. Rd1 {[%clk 0:01:08]}  Rxe5 {[%clk 0:00:43]} 24. Bxe5 {[%clk 0:01:08]}  Qf5 {[%clk 0:00:38]} 25. Bxb7 {[%clk 0:00:09]}  Bxf2+ {[%clk 0:00:28]} 26. Qxf2 {[%clk 0:00:10]}  Qxe5 {[%clk 0:00:28]} 27. Bxa6 {[%clk 0:00:08]}  Qxc3 {[%clk 0:00:27]} 28. Qd4 {[%clk 0:00:09]}  Qc2 {[%clk 0:00:23]} 29. Bb7 {[%clk 0:00:07]}  Qa4 {[%clk 0:00:15]} 30. a6 {[%clk 0:00:07]}  Bh5 {[%clk 0:00:11]} 31. Ra1 {[%clk 0:00:06]}  Qb5 {[%clk 0:00:08]} 32. a7 {[%clk 0:00:06]}  Qxb7 {[%clk 0:00:07]} 33. Qc5 {[%clk 0:00:06]}  Bg6 {[%clk 0:00:05]} 34. Qxf8+ {[%clk 0:00:06]}  Kxf8 {[%clk 0:00:04]} 35. a8=Q+ {[%clk 0:00:06]} 1-0


[Site "https://www.chess.com"]

[Event "Titled Tuesday Blitz September 28 2021"]
[White "Aldokhin, Ivan"]
[Black "Bazarov, Konstantin"]
[WhiteFideId "24115720"]
[BlackFideId "4137000"]
[WhiteElo "2265"]
[BlackElo "2035"]
[Result "0-1"]
[Round "08"]
[TimeControl "180+1"]
[Date "2021.09.28"]
[WhiteClock "0:00:10"]
[BlackClock "0:00:06"]

1. e4 {[%clk 0:02:53]}  d5 {[%clk 0:02:59]} 2. exd5 {[%clk 0:02:49]}  Qxd5 {[%clk 0:03:00]} 3. Nc3 {[%clk 0:02:49]}  Qd6 {[%clk 0:03:00]} 4. d4 {[%clk 0:02:49]}  Nf6 {[%clk 0:03:00]} 5. Nf3 {[%clk 0:02:50]}  a6 {[%clk 0:03:00]} 6. g3 {[%clk 0:02:50]}  Bg4 {[%clk 0:02:59]} 7. Bg2 {[%clk 0:02:51]}  Nc6 {[%clk 0:02:59]} 8. Bf4 {[%clk 0:02:51]}  Qe6+ {[%clk 0:02:58]} 9. Ne2 {[%clk 0:02:40]}  O-O-O {[%clk 0:02:53]} 10. O-O {[%clk 0:02:39]}  h6 {[%clk 0:02:49]} 11. c4 {[%clk 0:02:32]}  Qxc4 {[%clk 0:02:45]} 12. Rc1 {[%clk 0:02:32]}  Qxa2 {[%clk 0:02:35]} 13. Rxc6 {[%clk 0:01:36]}  bxc6 {[%clk 0:02:30]} 14. Ne5 {[%clk 0:01:32]}  Qxb2 {[%clk 0:02:09]} 15. Nxg4 {[%clk 0:01:03]}  Nxg4 {[%clk 0:02:07]} 16. Qd3 {[%clk 0:01:03]}  Qb5 {[%clk 0:02:04]} 17. Qf3 {[%clk 0:01:00]}  Nf6 {[%clk 0:01:54]} 18. Rc1 {[%clk 0:00:59]}  Nd5 {[%clk 0:01:50]} 19. Nc3 {[%clk 0:00:48]}  Qb3 {[%clk 0:01:02]} 20. Qd3 {[%clk 0:00:14]}  Nb4 {[%clk 0:00:52]} 21. Qf5+ {[%clk 0:00:11]}  e6 {[%clk 0:00:46]} 22. Qxf7 {[%clk 0:00:11]}  Bd6 {[%clk 0:00:44]} 23. Ne4 {[%clk 0:00:08]}  Bxf4 {[%clk 0:00:37]} 24. Qxf4 {[%clk 0:00:08]}  Rxd4 {[%clk 0:00:30]} 25. Qe5 {[%clk 0:00:08]}  Rhd8 {[%clk 0:00:28]} 26. Nc5 {[%clk 0:00:03]}  Rd1+ {[%clk 0:00:28]} 27. Rxd1 {[%clk 0:00:03]}  Rxd1+ {[%clk 0:00:26]} 28. Bf1 {[%clk 0:00:04]}  Qc4 {[%clk 0:00:23]} 29. Qxe6+ {[%clk 0:00:02]}  Qxe6 {[%clk 0:00:23]} 30. Nxe6 {[%clk 0:00:03]}  a5 {[%clk 0:00:21]} 31. Nc5 {[%clk 0:00:03]}  Nd5 {[%clk 0:00:18]} 32. Kg2 {[%clk 0:00:03]}  Nc3 {[%clk 0:00:18]} 33. Ba6+ {[%clk 0:00:03]}  Kb8 {[%clk 0:00:17]} 34. Bc4 {[%clk 0:00:03]}  a4 {[%clk 0:00:16]} 35. Kf3 {[%clk 0:00:02]}  Rd4 {[%clk 0:00:15]} 36. Bg8 {[%clk 0:00:01]}  Rd2 {[%clk 0:00:13]} 37. Ke3 {[%clk 0:00:01]}  Rd1 {[%clk 0:00:12]} 38. Na6+ {[%clk 0:00:01]}  Kb7 {[%clk 0:00:11]} 39. Nb4 {[%clk 0:00:02]}  c5 {[%clk 0:00:10]} 40. Nd3 {[%clk 0:00:02]}  Kb6 {[%clk 0:00:09]} 41. Nb2 {[%clk 0:00:02]}  Rb1 {[%clk 0:00:08]} 42. Nc4+ {[%clk 0:00:02]}  Kb5 {[%clk 0:00:08]} 43. Na3+ {[%clk 0:00:03]}  Kb4 {[%clk 0:00:08]} 44. Nxb1 {[%clk 0:00:03]}  Nxb1 {[%clk 0:00:09]} 45. Kd3 {[%clk 0:00:03]}  c4+ {[%clk 0:00:08]} 46. Bxc4 {[%clk 0:00:02]}  Nc3 {[%clk 0:00:08]} 47. Bg8 {[%clk 0:00:02]}  a3 {[%clk 0:00:08]} 48. Kc2 {[%clk 0:00:02]}  c5 {[%clk 0:00:06]} 49. f4 {[%clk 0:00:01]}  c4 {[%clk 0:00:06]} 50. f5 {[%clk 0:00:01]}  Ne4 {[%clk 0:00:06]} 51. Kb1 {[%clk 0:00:01]}  Nf6 {[%clk 0:00:06]} 52. Ka2 {[%clk 0:00:02]}  Nxg8 {[%clk 0:00:06]} 53. g4 {[%clk 0:00:02]}  Nf6 {[%clk 0:00:06]} 54. h4 {[%clk 0:00:03]}  Ne4 {[%clk 0:00:07]} 55. h5 {[%clk 0:00:03]}  Nf6 {[%clk 0:00:06]} 56. g5 {[%clk 0:00:04]}  hxg5 {[%clk 0:00:06]} 57. Ka1 {[%clk 0:00:05]}  Nxh5 {[%clk 0:00:05]} 58. Ka2 {[%clk 0:00:06]}  Ng3 {[%clk 0:00:05]} 59. Ka1 {[%clk 0:00:06]}  Nxf5 {[%clk 0:00:05]} 60. Ka2 {[%clk 0:00:07]}  Nd4 {[%clk 0:00:06]} 61. Ka1 {[%clk 0:00:08]}  g4 {[%clk 0:00:06]} 62. Ka2 {[%clk 0:00:09]}  g3 {[%clk 0:00:07]} 63. Ka1 {[%clk 0:00:09]}  g2 {[%clk 0:00:07]} 64. Ka2 {[%clk 0:00:09]}  Nb3 {[%clk 0:00:06]} 65. Kb1 {[%clk 0:00:09]}  g1=Q+ {[%clk 0:00:06]} 66. Kc2 {[%clk 0:00:10]}  Qf2+ {[%clk 0:00:06]} 0-1


[Site "https://www.chess.com"]

[Event "Titled Tuesday Blitz September 28 2021"]
[White "Andreikin, Dmitry"]
[Black "Nakamura, Hikaru"]
[WhiteFideId "4158814"]
[BlackFideId "2016192"]
[WhiteElo "2736"]
[BlackElo "2884"]
[Result "0-1"]
[Round "08"]
[TimeControl "180+1"]
[Date "2021.09.28"]
[WhiteClock "0:00:01"]
[BlackClock "0:00:15"]

1. d4 {[%clk 0:03:00]}  Nf6 {[%clk 0:02:56]} 2. c4 {[%clk 0:03:01]}  e6 {[%clk 0:02:57]} 3. Nf3 {[%clk 0:03:01]}  d5 {[%clk 0:02:57]} 4. Nc3 {[%clk 0:03:01]}  Be7 {[%clk 0:02:58]} 5. Bf4 {[%clk 0:03:00]}  O-O {[%clk 0:02:58]} 6. e3 {[%clk 0:03:00]}  Nbd7 {[%clk 0:02:58]} 7. c5 {[%clk 0:02:57]}  c6 {[%clk 0:02:57]} 8. h3 {[%clk 0:02:50]}  b6 {[%clk 0:02:56]} 9. b4 {[%clk 0:02:49]}  h6 {[%clk 0:02:54]} 10. Bd3 {[%clk 0:02:46]}  a5 {[%clk 0:02:54]} 11. a3 {[%clk 0:02:46]}  Bb7 {[%clk 0:02:55]} 12. O-O {[%clk 0:02:45]}  Qc8 {[%clk 0:02:55]} 13. Rc1 {[%clk 0:02:36]}  axb4 {[%clk 0:02:36]} 14. axb4 {[%clk 0:02:36]}  Ba6 {[%clk 0:02:36]} 15. b5 {[%clk 0:02:29]}  Bb7 {[%clk 0:02:28]} 16. cxb6 {[%clk 0:02:16]}  Nxb6 {[%clk 0:01:56]} 17. bxc6 {[%clk 0:02:14]}  Bxc6 {[%clk 0:01:57]} 18. Ne5 {[%clk 0:02:12]}  Qb7 {[%clk 0:01:55]} 19. Nxc6 {[%clk 0:01:44]}  Qxc6 {[%clk 0:01:56]} 20. Ne4 {[%clk 0:01:37]}  Qa4 {[%clk 0:01:46]} 21. Nxf6+ {[%clk 0:01:34]}  Bxf6 {[%clk 0:01:46]} 22. Qg4 {[%clk 0:01:31]}  Qa3 {[%clk 0:01:19]} 23. Bb1 {[%clk 0:01:00]}  Rfc8 {[%clk 0:01:10]} 24. Rcd1 {[%clk 0:01:01]}  Kf8 {[%clk 0:01:04]} 25. Qg3 {[%clk 0:01:00]}  Rc6 {[%clk 0:01:03]} 26. Bd3 {[%clk 0:00:49]}  Nc4 {[%clk 0:01:03]} 27. Be2 {[%clk 0:00:37]}  g5 {[%clk 0:00:49]} 28. Be5 {[%clk 0:00:28]}  Nxe5 {[%clk 0:00:46]} 29. dxe5 {[%clk 0:00:29]}  Bg7 {[%clk 0:00:46]} 30. f4 {[%clk 0:00:23]}  Qc3 {[%clk 0:00:42]} 31. Bh5 {[%clk 0:00:21]}  Rc7 {[%clk 0:00:40]} 32. fxg5 {[%clk 0:00:20]}  Qxe5 {[%clk 0:00:29]} 33. Qf3 {[%clk 0:00:13]}  Ra3 {[%clk 0:00:23]} 34. Bxf7 {[%clk 0:00:11]}  Rxe3 {[%clk 0:00:20]} 35. Qh5 {[%clk 0:00:11]}  Ke7 {[%clk 0:00:18]} 36. Bg8 {[%clk 0:00:06]}  Qxg5 {[%clk 0:00:16]} 37. Qf7+ {[%clk 0:00:03]}  Kd6 {[%clk 0:00:16]} 38. Qe8 {[%clk 0:00:04]}  Re2 {[%clk 0:00:13]} 39. Rf2 {[%clk 0:00:01]}  Rxf2 {[%clk 0:00:14]} 40. Kxf2 {[%clk 0:00:02]}  Rc2+ {[%clk 0:00:14]} 41. Ke1 {[%clk 0:00:01]}  Qe3+ {[%clk 0:00:14]} 42. Kf1 {[%clk 0:00:01]}  Qf2# {[%clk 0:00:15]} 0-1


[Site "https://www.chess.com"]

[Event "Titled Tuesday Blitz September 28 2021"]
[White "Aradhya, Garg"]
[Black "Przybylski, Wojciech"]
[WhiteFideId "25006746"]
[BlackFideId "1117599"]
[WhiteElo "2146"]
[BlackElo "2285"]
[Result "0-1"]
[Round "08"]
[TimeControl "180+1"]
[Date "2021.09.28"]
[WhiteClock "0:00:11"]
[BlackClock "0:00:03"]

1. d4 {[%clk 0:03:00]}  Nf6 {[%clk 0:02:53]} 2. c4 {[%clk 0:03:01]}  e6 {[%clk 0:02:36]} 3. Bf4 {[%clk 0:02:58]}  Bb4+ {[%clk 0:02:33]} 4. Nd2 {[%clk 0:02:57]}  O-O {[%clk 0:02:30]} 5. Nf3 {[%clk 0:02:56]}  d5 {[%clk 0:02:22]} 6. e3 {[%clk 0:02:56]}  c5 {[%clk 0:02:20]} 7. dxc5 {[%clk 0:02:52]}  Ne4 {[%clk 0:02:14]} 8. Rc1 {[%clk 0:02:48]}  Nc6 {[%clk 0:02:09]} 9. cxd5 {[%clk 0:02:43]}  Qxd5 {[%clk 0:02:07]} 10. Bc4 {[%clk 0:02:42]}  Qd7 {[%clk 0:02:00]} 11. a3 {[%clk 0:02:39]}  Bxd2+ {[%clk 0:01:39]} 12. Nxd2 {[%clk 0:02:38]}  Nxc5 {[%clk 0:01:39]} 13. Nb3 {[%clk 0:02:28]}  Qxd1+ {[%clk 0:01:28]} 14. Rxd1 {[%clk 0:02:27]}  Nxb3 {[%clk 0:01:23]} 15. Bxb3 {[%clk 0:02:27]}  e5 {[%clk 0:01:23]} 16. Bg3 {[%clk 0:02:26]}  Be6 {[%clk 0:01:19]} 17. Bxe6 {[%clk 0:02:25]}  fxe6 {[%clk 0:01:20]} 18. Rd6 {[%clk 0:02:24]}  Rfe8 {[%clk 0:01:18]} 19. Ke2 {[%clk 0:02:24]}  Kf7 {[%clk 0:01:14]} 20. Rc1 {[%clk 0:02:21]}  Rad8 {[%clk 0:01:09]} 21. Rxd8 {[%clk 0:02:14]}  Rxd8 {[%clk 0:01:09]} 22. f3 {[%clk 0:02:14]}  a6 {[%clk 0:01:00]} 23. Rc4 {[%clk 0:02:14]}  Rd5 {[%clk 0:00:56]} 24. h4 {[%clk 0:02:12]}  h5 {[%clk 0:00:55]} 25. Be1 {[%clk 0:02:12]}  Ke7 {[%clk 0:00:48]} 26. Bc3 {[%clk 0:02:10]}  Kd6 {[%clk 0:00:43]} 27. g4 {[%clk 0:02:09]}  g6 {[%clk 0:00:41]} 28. g5 {[%clk 0:01:52]}  Rc5 {[%clk 0:00:37]} 29. Re4 {[%clk 0:01:50]}  Rd5 {[%clk 0:00:33]} 30. f4 {[%clk 0:01:50]}  exf4 {[%clk 0:00:32]} 31. Rxf4 {[%clk 0:01:50]}  Rf5 {[%clk 0:00:32]} 32. Ra4 {[%clk 0:01:35]}  e5 {[%clk 0:00:27]} 33. Be1 {[%clk 0:01:22]}  Rf7 {[%clk 0:00:26]} 34. Rc4 {[%clk 0:01:21]}  Kd5 {[%clk 0:00:26]} 35. Rc1 {[%clk 0:01:20]}  Ke6 {[%clk 0:00:21]} 36. Bg3 {[%clk 0:01:18]}  Rd7 {[%clk 0:00:20]} 37. Rf1 {[%clk 0:01:15]}  Rf7 {[%clk 0:00:20]} 38. Rxf7 {[%clk 0:01:15]}  Kxf7 {[%clk 0:00:20]} 39. Kd3 {[%clk 0:01:15]}  Ke6 {[%clk 0:00:19]} 40. Ke4 {[%clk 0:01:16]}  Kd6 {[%clk 0:00:19]} 41. Be1 {[%clk 0:01:15]}  b5 {[%clk 0:00:18]} 42. b3 {[%clk 0:01:11]}  Ke6 {[%clk 0:00:18]} 43. a4 {[%clk 0:01:09]}  Ne7 {[%clk 0:00:18]} 44. Bc3 {[%clk 0:00:40]}  Nf5 {[%clk 0:00:16]} 45. Bxe5 {[%clk 0:00:36]}  Nxh4 {[%clk 0:00:16]} 46. Bh2 {[%clk 0:00:30]}  Nf5 {[%clk 0:00:16]} 47. Kd3 {[%clk 0:00:28]}  h4 {[%clk 0:00:11]} 48. e4 {[%clk 0:00:28]}  Nd6 {[%clk 0:00:08]} 49. Kd4 {[%clk 0:00:28]}  Nf7 {[%clk 0:00:08]} 50. Bf4 {[%clk 0:00:20]}  h3 {[%clk 0:00:07]} 51. axb5 {[%clk 0:00:20]}  axb5 {[%clk 0:00:07]} 52. Ke3 {[%clk 0:00:20]}  Nxg5 {[%clk 0:00:06]} 53. b4 {[%clk 0:00:19]}  Nf7 {[%clk 0:00:06]} 54. Kf3 {[%clk 0:00:18]}  Ne5+ {[%clk 0:00:06]} 55. Kg3 {[%clk 0:00:18]}  Nd3 {[%clk 0:00:06]} 56. Bd2 {[%clk 0:00:15]}  Ke5 {[%clk 0:00:06]} 57. Kxh3 {[%clk 0:00:16]}  Kxe4 {[%clk 0:00:07]} 58. Kg4 {[%clk 0:00:16]}  Ne5+ {[%clk 0:00:06]} 59. Kg3 {[%clk 0:00:16]}  Kd3 {[%clk 0:00:06]} 60. Be1 {[%clk 0:00:15]}  Kc4 {[%clk 0:00:05]} 61. Bd2 {[%clk 0:00:15]}  Nd3 {[%clk 0:00:05]} 62. Kg4 {[%clk 0:00:15]}  Nxb4 {[%clk 0:00:04]} 63. Kg5 {[%clk 0:00:15]}  Nd5 {[%clk 0:00:04]} 64. Kxg6 {[%clk 0:00:16]}  Nc3 {[%clk 0:00:04]} 65. Kf5 {[%clk 0:00:14]}  b4 {[%clk 0:00:04]} 66. Kf4 {[%clk 0:00:14]}  Kd3 {[%clk 0:00:03]} 67. Be1 {[%clk 0:00:11]}  b3 {[%clk 0:00:03]} 0-1


[Site "https://www.chess.com"]

[Event "Titled Tuesday Blitz September 28 2021"]
[White "Babazada, Khazar"]
[Black "Le, Tuan Minh"]
[WhiteFideId "13413554"]
[BlackFideId "12401153"]
[WhiteElo "2315"]
[BlackElo "2450"]
[Result "0-1"]
[Round "08"]
[TimeControl "180+1"]
[Date "2021.09.28"]
[WhiteClock "0:00:03"]
[BlackClock "0:00:09"]

1. Nf3 {[%clk 0:03:00]}  d5 {[%clk 0:02:13]} 2. g3 {[%clk 0:02:59]}  Nf6 {[%clk 0:02:14]} 3. Bg2 {[%clk 0:02:59]}  Bg4 {[%clk 0:02:14]} 4. b3 {[%clk 0:02:58]}  c6 {[%clk 0:02:14]} 5. Bb2 {[%clk 0:02:57]}  Nbd7 {[%clk 0:02:15]} 6. O-O {[%clk 0:02:56]}  e6 {[%clk 0:02:15]} 7. d3 {[%clk 0:02:54]}  Bd6 {[%clk 0:02:16]} 8. Nbd2 {[%clk 0:02:54]}  O-O {[%clk 0:02:16]} 9. e4 {[%clk 0:02:53]}  e5 {[%clk 0:02:16]} 10. h3 {[%clk 0:02:49]}  Bh5 {[%clk 0:02:15]} 11. Qe1 {[%clk 0:02:50]}  Re8 {[%clk 0:02:14]} 12. Nh4 {[%clk 0:02:50]}  Qc7 {[%clk 0:02:12]} 13. Nf5 {[%clk 0:02:49]}  Bc5 {[%clk 0:02:09]} 14. Kh2 {[%clk 0:02:48]}  Bg6 {[%clk 0:02:02]} 15. Nh4 {[%clk 0:02:46]}  Rad8 {[%clk 0:02:00]} 16. a3 {[%clk 0:02:40]}  Nf8 {[%clk 0:01:56]} 17. Nxg6 {[%clk 0:02:39]}  hxg6 {[%clk 0:01:56]} 18. Nf3 {[%clk 0:02:39]}  Bd6 {[%clk 0:01:35]} 19. Qe3 {[%clk 0:02:35]}  Ne6 {[%clk 0:01:30]} 20. b4 {[%clk 0:02:25]}  d4 {[%clk 0:01:15]} 21. Qd2 {[%clk 0:02:19]}  c5 {[%clk 0:01:15]} 22. Rfc1 {[%clk 0:02:09]}  Bf8 {[%clk 0:00:54]} 23. c4 {[%clk 0:02:06]}  Qb6 {[%clk 0:00:39]} 24. b5 {[%clk 0:01:59]}  Qc7 {[%clk 0:00:39]} 25. a4 {[%clk 0:01:59]}  Bd6 {[%clk 0:00:38]} 26. a5 {[%clk 0:01:59]}  Nd7 {[%clk 0:00:37]} 27. h4 {[%clk 0:01:57]}  f5 {[%clk 0:00:35]} 28. Bh3 {[%clk 0:01:54]}  Rf8 {[%clk 0:00:34]} 29. exf5 {[%clk 0:01:49]}  gxf5 {[%clk 0:00:33]} 30. Ng5 {[%clk 0:01:50]}  Rde8 {[%clk 0:00:31]} 31. Re1 {[%clk 0:01:46]}  e4 {[%clk 0:00:22]} 32. dxe4 {[%clk 0:01:42]}  Nxg5 {[%clk 0:00:22]} 33. Qxg5 {[%clk 0:01:42]}  Ne5 {[%clk 0:00:18]} 34. Kg2 {[%clk 0:01:37]}  f4 {[%clk 0:00:17]} 35. Bf5 {[%clk 0:01:32]}  f3+ {[%clk 0:00:15]} 36. Kh2 {[%clk 0:01:29]}  Qf7 {[%clk 0:00:11]} 37. Bc1 {[%clk 0:01:21]}  Be7 {[%clk 0:00:08]} 38. Qf4 {[%clk 0:01:15]}  Nd3 {[%clk 0:00:05]} 39. Qg4 {[%clk 0:01:13]}  Nxf2 {[%clk 0:00:02]} 40. Qxf3 {[%clk 0:01:07]}  g6 {[%clk 0:00:02]} 41. Bh6 {[%clk 0:01:00]}  gxf5 {[%clk 0:00:03]} 42. Qxf2 {[%clk 0:01:01]}  fxe4 {[%clk 0:00:03]} 43. Qg2 {[%clk 0:00:57]}  e3 {[%clk 0:00:03]} 44. Rf1 {[%clk 0:00:49]}  Qe6 {[%clk 0:00:03]} 45. Bxf8 {[%clk 0:00:46]}  Bxf8 {[%clk 0:00:04]} 46. Ra3 {[%clk 0:00:37]}  Bd6 {[%clk 0:00:05]} 47. Qxb7 {[%clk 0:00:35]}  Re7 {[%clk 0:00:04]} 48. Qa8+ {[%clk 0:00:33]}  Kh7 {[%clk 0:00:05]} 49. Qf3 {[%clk 0:00:29]}  Rg7 {[%clk 0:00:04]} 50. Rg1 {[%clk 0:00:27]}  Qe5 {[%clk 0:00:04]} 51. b6 {[%clk 0:00:25]}  a6 {[%clk 0:00:05]} 52. b7 {[%clk 0:00:24]}  Bb8 {[%clk 0:00:04]} 53. Rb3 {[%clk 0:00:24]}  e2 {[%clk 0:00:04]} 54. Re1 {[%clk 0:00:21]}  Re7 {[%clk 0:00:02]} 55. Kg2 {[%clk 0:00:18]}  Kg7 {[%clk 0:00:03]} 56. Rb2 {[%clk 0:00:16]}  d3 {[%clk 0:00:03]} 57. Qxd3 {[%clk 0:00:16]}  Qxb2 {[%clk 0:00:03]} 58. Qd5 {[%clk 0:00:12]}  Qxb7 {[%clk 0:00:03]} 59. Qxb7 {[%clk 0:00:11]}  Rxb7 {[%clk 0:00:04]} 60. Rxe2 {[%clk 0:00:11]}  Rb3 {[%clk 0:00:05]} 61. Re6 {[%clk 0:00:10]}  Rxg3+ {[%clk 0:00:05]} 62. Kf2 {[%clk 0:00:11]}  Rc3 {[%clk 0:00:06]} 63. Rxa6 {[%clk 0:00:10]}  Bg3+ {[%clk 0:00:06]} 64. Kg2 {[%clk 0:00:10]}  Bxh4 {[%clk 0:00:07]} 65. Rc6 {[%clk 0:00:08]}  Rxc4 {[%clk 0:00:07]} 66. a6 {[%clk 0:00:08]}  Ra4 {[%clk 0:00:08]} 67. Rxc5 {[%clk 0:00:07]}  Rxa6 {[%clk 0:00:08]} 68. Kh3 {[%clk 0:00:08]}  Be7 {[%clk 0:00:08]} 69. Rc4 {[%clk 0:00:06]}  Bf6 {[%clk 0:00:09]} 70. Kg4 {[%clk 0:00:06]}  Kg6 {[%clk 0:00:08]} 71. Kf4 {[%clk 0:00:07]}  Re6 {[%clk 0:00:09]} 72. Re4 {[%clk 0:00:07]}  Rc6 {[%clk 0:00:08]} 73. Ke3 {[%clk 0:00:06]}  Rc3+ {[%clk 0:00:07]} 74. Kd2 {[%clk 0:00:06]}  Ra3 {[%clk 0:00:08]} 75. Rg4+ {[%clk 0:00:05]}  Kf5 {[%clk 0:00:08]} 76. Rc4 {[%clk 0:00:05]}  Be5 {[%clk 0:00:08]} 77. Kc2 {[%clk 0:00:06]}  Ke6 {[%clk 0:00:08]} 78. Kd2 {[%clk 0:00:06]}  Kd5 {[%clk 0:00:09]} 79. Rc2 {[%clk 0:00:06]}  Ke4 {[%clk 0:00:08]} 80. Ke2 {[%clk 0:00:06]}  Rh3 {[%clk 0:00:08]} 81. Kd2 {[%clk 0:00:05]}  Bd4 {[%clk 0:00:08]} 82. Rc4 {[%clk 0:00:03]}  Rh2+ {[%clk 0:00:08]} 83. Kc1 {[%clk 0:00:03]}  Kd3 {[%clk 0:00:09]} 0-1


[Site "https://www.chess.com"]